Cogmind - Beta 13 @@@ ROGUE MODE // 2024.04.07 @ 23:46:56 Player: triplej Result: Destroyed by G-47 Trooper with Particle Gun Performance ------------- Evolutions (0) 0 Regions Visited (1) 200 Robots Destroyed (6) 30 Value Destroyed (230) 230 Prototype IDs (0) 0 Alien Tech Used (0) 0 Bonus (0) 0 TOTAL SCORE: 460 Bonus ------- None Cogmind --------- Core Integrity 0/250 Matter 268/300 Energy 142/160 System Corruption 0% Temperature Hot (285) Movement Walking (190) Ox1 Location -10/Materials Parts ------- > --- POWER (1) -------- Light Nuclear Core > --- PROPULSION (2) --- Aluminum Leg > --- UTILITY (2) ------ Small Storage Unit > --- WEAPON (2) ------- Small Laser Particle Gun > --- INVENTORY (8) ---- Light Treads Light Treads Wheel Compact Wheel Peak State ------------ > --- POWER ------------ Light Nuclear Core > --- PROPULSION ------- Aluminum Leg Aluminum Leg > --- UTILITY ---------- Small Storage Unit > --- WEAPON ----------- Small Laser Light Assault Rifle > --- INVENTORY -------- Light Treads Light Treads Wheel Compact Wheel Small Laser [Rating: 8] Favorites ----------- Power Light Ion Engine Engine Light Ion Engine Power Core Light Nuclear Core Propulsion Aluminum Leg Leg Aluminum Leg Utility Small Storage Unit Device Sensor Array Storage Small Storage Unit Weapon Light Assault Rifle Energy Gun Small Laser Ballistic Gun Light Assault Rifle Build | -11 -10 ------- Run | Yrd Mat Slots Evolved . | . . Power . | . . Propulsion . | . . Utility . | . . Weapon . | . . Parts Attached 14 | 6 8 Power 3 | 1 2 Engine 2 | 1 1 Core 1 | . 1 Reactor . | . . Propulsion 3 | 2 1 Treads . | . . Leg 3 | 2 1 Wheel . | . . Hover . | . . Flight . | . . Utility 2 | 1 1 Device 1 | . 1 Storage 1 | 1 . Processor . | . . Hackware . | . . Protection . | . . Artifact . | . . Weapon 6 | 2 4 Energy Gun 4 | 1 3 Energy Cannon . | . . Ballistic Gun 2 | 1 1 Ballistic Cannon . | . . Launcher . | . . Special Weapon . | . . Impact Weapon . | . . Slashing Weapon . | . . Piercing Weapon . | . . Special Melee Weapon . | . . Unidentified Prototypes . | . . Parts Lost 8 | . 8 Power 2 | . 2 Propulsion 2 | . 2 Utility 1 | . 1 Weapon 3 | . 3 Highest Loss Streak 5 | . 5 To Critical Strikes . | . . Average Slot Usage (%) 85 | . 85 Engine 12 | . 12 Core 1 | . 1 Leg 27 | . 27 Device 4 | . 4 Storage 14 | . 14 Energy Gun 10 | . 10 Ballistic Gun 15 | . 15 Naked Turns . | . . Heaviest Build 14 | 10 14 Greatest Support 20 | 20 20 Greatest Overweight (x) 1 | . 1 Average Overweight (x) . | . . Largest Inventory Capacity 8 | 8 8 Average Capacity 7 | 6 8 Most Carried 8 | 6 8 Average Carried 5 | 4 6 Final Capacity 8 | 8 8 Final Carried 6 | 6 4 Class Distribution -------------------- 100% | Mutant Dominant Class ---------------- Mutant | -10/Materials Resources | -11 -10 ----------- Run | Yrd Mat Matter Collected 331 | 218 113 Remotely . | . . Salvage Created 226 | . 226 Parts 15 | . 15 Haulers Intercepted . | . . Recyclers Shooed 1 | . 1 Parts Field Recycled . | . . Retrieved Matter . | . . Parts Self-Destructed . | . . Prevented . | . . Kills | -11 -10 ------- Run | Yrd Mat Combat Hostiles Destroyed 6 | . 6 Guns 6 | . 6 Classes Destroyed 1 | . 1 Grunt 6 | . 6 Best Kill Streak 3 | . 3 Combat Bots Only 3 | . 3 Max Kills in Single Turn 1 | . 1 Gunslinging . | . . Exploded . | . . Melee . | . . Uniques/NPCs Destroyed . | . . Combat | -11 -10 -------- Run | Yrd Mat Hostile Shots Fired 108 | . 108 Missed 31 | . 31 Damage Taken 1013 | . 1013 Core 263 | . 263 Absorbed by Shields . | . . Core Remaining (%) 100 | 100 . Volleys Fired 31 | . 31 Largest 2 | . 2 Hottest 105 | . 105 Shots Fired 56 | . 56 Gun 56 | . 56 Cannon . | . . Launcher . | . . Special . | . . Kinetic 39 | . 39 Thermal 17 | . 17 Explosive . | . . Electromagnetic . | . . Robot Hit Streak 8 | . 8 Robot Miss Streak 4 | . 4 Penetration Max . | . . Secondary Targets 4 | . 4 Max Gunslinging Chain 1 | . 1 Shots Hit Robots 36 | . 36 Core Hits 18 | . 18 Critical Kills . | . . Critical Parts Destroyed . | . . Critical Strikes 1 | . 1 Burn 1 | . 1 Melee Attacks . | . . Impact . | . . Slashing . | . . Piercing . | . . Sneak Attacks . | . . Combat Hostiles . | . . Follow-up Attacks . | . . Damage Inflicted 377 | . 377 Guns 377 | . 377 Cannons . | . . Explosions . | . . Melee . | . . Ramming . | . . Kinetic 269 | . 269 Thermal 108 | . 108 Explosive . | . . Electromagnetic . | . . Impact . | . . Slashing . | . . Piercing . | . . Highest Corruption . | . . Average Corruption . | . . Corruption Purged . | . . Corruption Blocked . | . . Overload Shots . | . . Overflow Damage . | . . Projectiles . | . . Explosions . | . . Melee . | . . Knockbacks . | . . Impact . | . . Kinetic . | . . Secondary . | . . Self-Inflicted Damage . | . . Shots . | . . Rammed . | . . Targets Rammed . | . . Kicked . | . . Crushed . | . . Highest Temperature 276 | . 276 Average Temperature 128 | . 128 Received Heat Transfer 600 | . 600 Siege Activations . | . . Robots Corrupted . | . . Combat Hostiles . | . . Parts Fried . | . . Impact Corruptions . | . . Robots Melted . | . . Combat Hostiles . | . . Parts Melted . | . . Heat Transferred 323 | . 323 Parts Sabotaged . | . . Parts Stolen . | . . Parts Stripped . | . . Power Chain Reactions . | . . Alert | -11 -10 ------- Run | Yrd Mat Peak Influence 130 | . 130 Initial . | . . Average 36 | . 44 Maximum Alert Level . | . . Low Security (%) 100 | 100 100 Level 1 . | . . Level 2 . | . . Level 3 . | . . Level 4 . | . . Level 5 . | . . High Security . | . . Max Security . | . . Squads Dispatched 2 | . 2 Investigation . | . . Extermination . | . . Reinforcement 2 | . 2 Assault . | . . Garrison . | . . Intercept . | . . Searches Triggered . | . . Construction Impeded . | . . Haulers Reinforced . | . . Active Scanning Responses . | . . Cargo Convoy Interrupts . | . . Stealth | -11 -10 --------- Run | Yrd Mat Distress Signals . | . . Communications Jammed . | . . Distress Signals . | . . Times Spotted 15 | . 15 Peak Tracking Total 7 | . 7 Tactical Retreats 3 | . 3 Traps | -11 -10 ------- Run | Yrd Mat Traps Triggered . | . . Indirectly . | . . Trap Hack Attempts . | . . Triggered . | . . Disarmed . | . . Reprogrammed . | . . Reused . | . . Traps Extracted . | . . Installed . | . . Triggered . | . . Machines | -11 -10 ---------- Run | Yrd Mat Machines Disabled . | . . Max in Single Turn . | . . Machines Repaired . | . . Machines Dismantled . | . . Machines Sabotaged . | . . Overloaded Fab Kills . | . . Hacking | -11 -10 --------- Run | Yrd Mat Machines Accessed . | . . Terminals . | . . Fabricators . | . . Repair Stations . | . . Recycling Units . | . . Scanalyzers . | . . Garrison Access . | . . Total Hacks . | . . Successful . | . . Failed . | . . Catastrophic . | . . Database Lockouts . | . . Manual . | . . Terminals . | . . Fabricators . | . . Repair Stations . | . . Recycling Units . | . . Scanalyzers . | . . Garrison Access . | . . Terminal Hacks . | . . Fabricator Hacks . | . . Repair Station Hacks . | . . Recycling Unit Hacks . | . . Scanalyzer . | . . Garrison Access Hacks . | . . Unauthorized Hacks . | . . Terminals . | . . Fabricators . | . . Repair Stations . | . . Recycling Units . | . . Scanalyzers . | . . Garrison Access . | . . Data Cores Recovered . | . . Used . | . . Hacking Detections . | . . Full Trace Events . | . . Feedback Events . | . . Feedback Blocked . | . . Robot Schematics Acquired . | . . Robots Built . | . . Authchips . | . . Time . | . . Total Robot Build Rating . | . . Part Schematics Acquired . | . . Parts Built . | . . Authchips . | . . Time . | . . Total Part Build Rating . | . . Parts Repaired . | . . Time . | . . Parts Recycled . | . . Recycled Matter . | . . Retrieved Matter . | . . Retrieved Components . | . . Parts Scanalyzed . | . . Part Schematics Acquired . | . . Parts Damaged . | . . Bothacking | -11 -10 ------------ Run | Yrd Mat Used RIF Installer . | . . Robots Hacked . | . . Non-combat . | . . Combat . | . . Robot Hacks Applied . | . . Relay Couplers Released . | . . Fabnet Peak Effective % . | . . Robots Rewired . | . . Allies Hacked . | . . Hacks Repelled . | . . Allies | -11 -10 -------- Run | Yrd Mat Total Allies . | . . Largest Group . | . . Highest-Rated Group . | . . Highest-Rated Ally . | . . Total Orders . | . . Ally Attacks . | . . Total Damage . | . . Kills . | . . Allies Corrupted . | . . Allies Melted . | . . Intel | -11 -10 ------- Run | Yrd Mat Robot Analysis Total . | . . Derelict Logs Recovered . | . . Drone Launches . | . . Drone Recoveries . | . . Exploration | -11 -10 ------------- Run | Yrd Mat Turns Passed 346 | 64 282 Spaces Moved 189 | 44 145 Core 5 | 5 . Treads . | . . Legs 184 | 39 145 Wheels . | . . Hover . | . . Flight . | . . Fastest Speed 50 | 50 120 Average Speed 118 | 112 120 Slowest Speed 190 | 120 190 Overloaded Moves . | . . Propulsion Burnouts . | . . Robots Hopped . | . . Cave-ins Triggered . | . . Exploration Rate (%) 14 | 3 25 Regions Visited 1 Branch Regions . Pre-discovered Areas . | . . Known Exits Taken . | . . Unknown Exits Taken 1 | 1 . Scrap Searched . | . . Spaces Dug . | . . Terrain Destroyed . | . . Melee . | . . Projectile . | . . AOE . | . . Terrain Rammed . | . . Walls Destroyed . | . . Machines Disabled . | . . Actions | -11 -10 --------- Run | Yrd Mat Total 258 | 56 202 Wait 15 | . 15 Move 188 | 43 145 Hop . | . . Pick Up 10 | 7 3 Fast Attach 7 | 5 2 Attach 6 | 1 5 Detach . | . . Swap 1 | . 1 Drop . | . . Fire 31 | . 31 Melee . | . . Ram . | . . Kick . | . . Crush . | . . Escape Stasis . | . . Rewire . | . . Trap . | . . Miscellaneous . | . . Route ------- -11/Scrapyard -10/Materials History --------- Turn | Location | Event 12 | -11/Scrapyard | Discovered new exit (range 14) 65 | -11/Scrapyard | Entered Materials 266 | -10/Materials | Lost 3 parts (1p1u1w) 299 | -10/Materials | Core integrity fell below 50% 307 | -10/Materials | Build established: Mutant 318 | -10/Materials | Core integrity fell below 20% 347 | -10/Materials | Destroyed by G-47 Trooper with Particle Gun Last Messages --------------- Core. 00334_ O-16 Technician: "IFF HANDSHAKE FAILED. SECURING TERMINAL." 00334_ R-06 Scavenger collects Aluminum Leg. 00335_ Aluminum Leg destroyed. 00336_ R-06 Scavenger collects Sml. Laser. 00337_ R-06 Scavenger collects Aluminum Leg. 00338_ Acquired Particle Gun. 00338_ O-16 Technician uses terminal to summon reinforcements. 00338_ ALERT: Hostiles spotted, dispatching reinforcements to Terminal M001. 00338_ O-16 Technician locks terminal. 00339_ G-34 Mercenary destroyed. 00339_ Switching to secondary target: G-47 Trooper. 00339_ R-06 Scavenger collects Heat Sink. 00342_ R-06 Scavenger collects Ion Engine. 00347_ R-06 Scavenger suffers critical hit (Burn). Map ----- +----------------------------------------------------+ | | | | | ?????????????????????????????????????????????????? | | ?????????????????????????????????????????????????? | | ???????????????????????????????????????????????### | | ??????????????????????????##################### | | ??????????????????????????# | | ??????????????????????????# ################# # | | ?????????????????#?######## #????# #????###+#### | | ?????????????????# # #????# #????# | | ?????????????????# """ # #????# #????# "" | | ?????????????????# """ # ###### #????# """ "R | | ?????????????????# """ # #????# """ " | | ?????????????????# + ###### """ | | ?????????????????# """ # #! # | | ?????????????????# """ ######## # # | | ?????????????????# """ #??????# # # | | ?????????????????# #??????# # #####+## | | ???????????????################### + #?? | | ???????????????# # | ### | | ????????????? # %= / | | ?????????? """ """ r # ! ### | | ??????????? w """ """ "" # #?# | | ???????????????# """ """ """ !############# | | ???????????????# r g ^ """ # #?? | | ???????????????# %@ % """ + #?? | | ???????????????# """ """ # """ #?? | | ???????????????# """ """ # """""??? | | ???????????????# """ """ # """""??? | | ???????????????# ######## """"???? | | ???????????????# w #??????# """???? | | ???????????????# """ ! #??????# ???? | | ???????????????? """ #??????##/#######??? | | ???????????????? """ o" #???????? #????????? | | ???????????????? ?? T #???????? ????????? | | ?????????????????? " ???????? ????????? | | ????????????????? ????????T ????????? | | ????????????????? ???????? ????????? | | ????????????????? ######## #???????? ???????? | | ??????????????????##?????????#?????????? #???????? | | ???????????????????????????????????????? #???????? | | ?????????????????????????????????????????#???????? | | ?????????????????????????????????????????????????? | | ?????????????????????????????????????????????????? | | ?????????????????????????????????????????????????? | | ?????????????????????????????????????????????????? | | ?????????????????????????????????????????????????? | | ?????????????????????????????????????????????????? | | ?????????????????????????????????????????????????? | | ?????????????????????????????????????????????????? | +----------------------------------------------------+ Best States ------------- Heat Dissipation 25 Energy Generation 14 Energy Capacity 250 Matter Stores 294 Matter Capacity 300 Sight Range 16 Robot Scan Range 14 Terrain Scan Density 10 Evasion (%) 55 Item Schematics ----------------- None Robot Schematics ------------------ None Fabricated ------------ Nothing Alien Tech Used ----------------- None Achievements -------------- None Challenges ------------ None Game ------ Seed ReactionAntimissileScythe Manual? 0 Play Time 00:12:12 Cumulative 8.9 hours Start 2024.04.07 @ 22:57:34 End 2024.04.07 @ 23:46:56 Sessions 1 Manual Loads 0 Difficulty Rogue Special Mode None Game No. 20 Rogue 15 Adventurer 5 Explorer 0 Win Type - Total 0 Types 0/0/0/0/0/0/0/0/0 Lore% 2 Gallery% 18 Achievement% 14 Wizard Run 0 Options --------- Layout 1 ASCII 0 Keyboard 0 Movement Mouse Keybinds 0 Fullscreen 2 Font 32/Dina Map View 50x35 Zoom Use 0% Tactical HUD 1 Map Filters NONE Filters NONE Steam 1 RUN: ed5c56c3-5235-4de3-866a-f51a094f1dae